bitfinex/quotes_SOLUSD_20250829
["timestamp","ask_amount","ask_price","bid_price","bid_amount"]
[1756480781272,16.64661556,210.21,210.18,0.66]
[1756480781472,16.64661556,210.21,210.19,20.0]
[1756480781675,13.59559401,210.23,210.13,20.69]
[1756480781854,16.64661556,210.17,210.13,20.69]
[1756480782171,16.64661556,210.17,210.14,0.66]
[1756480782470,16.64661556,210.17,210.15,0.66]
[1756480782858,16.64661556,210.2,210.16,0.66]
[1756480783177,16.64661556,210.21,210.17,0.66]
[1756480783346,4.75646879,210.24,210.18,20.66]
[1756480783546,16.64661556,210.22,210.18,20.66]
[1756480783850,16.64661556,210.21,210.18,20.66]
[1756480784472,0.20216157,210.26,210.21,20.0]
[1756480784473,0.06,210.26,210.21,20.0]
[1756480784860,0.06,210.26,210.22,0.66]
[1756480785063,0.06,210.26,210.23,0.66]
[1756480785380,0.06,210.26,210.25,20.0]
[1756480785566,0.06,210.26,210.25,20.66]
[1756480785756,0.06,210.26,210.25,20.0]
[1756480785946,0.06,210.26,210.25,20.66]
[1756480786351,0.06,210.26,210.25,20.0]
[1756480786551,16.70661556,210.26,210.25,20.0]
[1756480786775,0.06,210.26,210.25,20.0]
[1756480787479,16.70661556,210.26,210.25,20.0]
[1756480787656,16.70661556,210.26,210.23,20.0]
[1756480787848,16.64661556,210.24,210.23,20.0]
[1756480788254,0.06,210.26,210.23,20.66]
[1756480788478,16.64661556,210.25,210.23,20.66]
[1756480788680,16.64661556,210.25,210.23,20.0]
[1756480788859,16.64661556,210.25,210.23,20.66]
[1756480789478,16.70661556,210.26,210.24,0.66]
[1756480790188,16.64661556,210.25,210.23,20.0]
[1756480790677,16.64661556,210.25,210.23,20.66]
[1756480790876,4.81614475,210.26,210.23,20.0]
[1756480790877,16.70661556,210.26,210.23,20.0]
[1756480791079,16.70661556,210.26,210.23,20.66]
[1756480791395,0.06,210.26,210.24,0.66]
[1756480791693,0.06,210.26,210.25,20.66]
[1756480791871,0.06,210.26,210.25,37.30661556]
[1756480792189,0.06,210.29,210.25,78.06661556]
[1756480792369,0.06,210.29,210.28,20.0]
[1756480792772,0.06,210.29,210.28,42.06217956]
[1756480793276,0.06,210.29,210.28,20.66]
[1756480793493,0.06,210.29,210.28,25.415564]
[1756480794862,0.06,210.29,210.28,20.66]
[1756480795261,0.06,210.29,210.28,20.0]
[1756480795484,17.37661556,210.29,210.26,20.0]
[1756480795681,16.64661556,210.27,210.24,20.0]
[1756480795862,0.73,210.29,210.24,20.0]
[1756480795863,16.64661556,210.26,210.24,20.0]
[1756480796389,16.64661556,210.25,210.21,20.66]
[1756480796690,16.64661556,210.24,210.22,20.0]
[1756480797092,16.64661556,210.23,210.22,20.0]
[1756480797686,16.64661556,210.25,210.22,20.0]
[1756480798055,16.64661556,210.24,210.22,20.0]
[1756480798364,16.64661556,210.24,210.15,60.56]
[1756480798365,16.64661556,210.23,210.15,60.56]
[1756480798569,16.64661556,210.18,210.15,60.56]
[1756480798770,16.64661556,210.18,210.17,20.0]
[1756480798978,16.64661556,210.19,210.17,20.0]
[1756480799362,16.64661556,210.18,210.15,20.0]
[1756480799564,16.64661556,210.16,210.15,20.0]
[1756480800160,16.64661556,210.16,210.13,0.03]
[1756480800360,16.78877713,210.15,210.13,0.03]
[1756480800581,16.78877713,210.14,210.13,0.03]
[1756480800889,17.46877713,210.14,210.13,0.03]
[1756480801499,13.73775558,210.13,210.11,0.03]
[1756480801805,13.73775558,210.13,210.06,0.2]
[1756480801806,39.59559401,210.1,210.06,0.2]
[1756480802098,16.78877713,210.07,210.06,0.2]
[1756480802484,31.06437114,210.07,210.06,0.2]
[1756480802665,13.73775558,210.06,209.97,0.65]
[1756480802970,16.64661556,210.01,209.99,20.0]
[1756480803364,16.64661556,210.01,209.99,20.65]
[1756480803564,16.64661556,210.01,210.0,0.65]
[1756480803779,16.64661556,210.04,210.01,20.0]
[1756480803973,0.82216157,210.1,210.02,0.65]
[1756480804182,16.64661556,210.04,210.03,20.0]
[1756480804379,16.64661556,210.05,210.03,20.65]
[1756480804580,16.64661556,210.09,210.05,20.0]
[1756480804777,16.64661556,210.09,210.04,0.65]
[1756480804778,5.43760026,210.19,210.11,20.0]
[1756480804970,16.64661556,210.15,210.11,20.0]
[1756480805169,16.64661556,210.15,210.12,0.65]
[1756480805372,4.75714761,210.21,210.12,0.65]
[1756480805705,41.26,210.26,210.16,20.0]
[1756480805891,16.64661556,210.17,210.14,20.0]
[1756480806087,5.43625527,210.25,210.1,0.65]
[1756480806088,16.64661556,210.15,210.12,20.0]
[1756480806289,16.64661556,210.13,210.08,20.0]
[1756480806485,0.14216157,210.11,210.06,20.0]
[1756480806691,16.64661556,210.07,210.04,20.0]
[1756480806892,0.82216157,210.16,210.06,20.0]
[1756480807074,39.59559401,210.19,210.09,20.0]
[1756480807075,26.0,210.19,210.09,20.0]
[1756480807281,25.88293082,210.15,210.14,20.0]
[1756480808003,25.88293082,210.17,210.14,20.65]
[1756480808310,25.88293082,210.17,210.14,20.0]
[1756480808518,14.33559401,210.26,210.15,0.65]
[1756480808682,25.88293082,210.21,210.19,20.0]
[1756480809184,25.88293082,210.22,210.2,0.65]
[1756480809392,5.49611277,210.26,210.19,20.0]
[1756480809584,25.88293082,210.2,210.19,20.0]
[1756480809898,30.64035052,210.2,210.16,20.0]
[1756480810199,25.88293082,210.17,210.14,20.0]
[1756480810394,25.88293082,210.15,210.12,20.0]
[1756480810594,25.88293082,210.15,210.13,0.65]
[1756480810797,25.88293082,210.17,210.14,20.65]
[1756480811100,4.75712484,210.22,210.16,20.0]
[1756480811397,25.88293082,210.18,210.16,20.0]
[1756480811703,4.75624256,210.25,210.18,20.0]
[1756480811917,25.88293082,210.21,210.18,20.0]
[1756480812207,25.88293082,210.21,210.19,0.65]
[1756480812517,25.88293082,210.2,210.18,20.0]
[1756480812693,25.88293082,210.19,210.18,20.0]
[1756480812895,25.88293082,210.19,210.16,20.0]
[1756480813197,16.78901055,210.25,210.18,20.0]
[1756480813198,25.88293082,210.22,210.18,20.0]
[1756480813405,25.88293082,210.22,210.19,0.65]
[1756480813583,25.88293082,210.22,210.2,20.0]
[1756480814124,0.14216157,210.25,210.2,20.0]
[1756480814424,0.06,210.26,210.25,20.0]
[1756480814698,0.06,210.26,210.25,20.65]
[1756480815110,0.06,210.26,210.25,46.53293082]
[1756480815492,0.06,210.26,210.25,20.65]
[1756480815876,0.06,210.26,210.25,51.28917338]
[1756480816784,0.06,210.26,210.25,25.40624256]
[1756480816988,0.06,210.26,210.25,131.88917338]
[1756480817290,0.06,210.26,210.25,106.00624256]
[1756480817685,0.06,210.26,210.25,61.13]
[1756480818007,25.94293082,210.26,210.25,20.0]
[1756480818209,0.06,210.26,210.25,20.65]
[1756480818385,0.06,210.26,210.25,20.0]
[1756480818909,0.06,210.26,210.25,25.40624256]
[1756480819110,0.06,210.26,210.25,51.28917338]
[1756480820618,0.06,210.26,210.25,25.40624256]
[1756480820821,0.06,210.26,210.25,91.76917338]
[1756480821182,0.06,210.29,210.28,26.0]
[1756480821381,0.06,210.29,210.28,71.88293082]
[1756480821616,0.06,210.29,210.28,46.65]
[1756480821823,0.06,210.29,210.28,77.28849482]
[1756480822314,1e-08,210.29,210.28,77.28849482]
[1756480822507,1e-08,210.29,210.28,117.76849482]
[1756480823523,1e-08,210.29,210.28,131.36408883]
[1756480824304,1e-08,210.31,210.3,33.59559401]
[1756480824529,1e-08,210.31,210.3,59.47852483]
[1756480824715,1e-08,210.31,210.3,60.12852483]
[1756480825029,1e-08,210.31,210.3,86.99293082]
[1756480825212,1e-08,210.31,210.3,20.65]
[1756480825409,1e-08,210.31,210.3,60.46]
[1756480825626,1e-08,210.31,210.3,86.99293082]
[1756480826132,1e-08,210.31,210.3,91.74804256]
[1756480826505,1e-08,210.31,210.3,105.34363657]
[1756480827019,0.78,210.48,210.38,26.0]
[1756480827333,0.78,210.48,210.39,77.08740477]
[1756480827538,16.72740477,210.48,210.47,20.0]
[1756480828028,0.1,210.48,210.47,20.0]
[1756480828724,16.72740477,210.48,210.47,20.0]
[1756480828901,0.1,210.48,210.47,20.0]
[1756480829307,0.1,210.48,210.47,25.40127096]
[1756480829528,0.1,210.48,210.47,42.02867573]
[1756480829899,0.1,210.48,210.47,65.21127096]
[1756480830224,0.1,210.48,210.47,20.0]
[1756480830422,0.1,210.48,210.47,24.75127096]
[1756480830622,0.1,210.48,210.47,41.37867573]
[1756480830828,0.1,210.48,210.47,81.81867573]
[1756480831034,0.1,210.48,210.47,65.19127096]
[1756480831406,0.1,210.48,210.47,81.81867573]
[1756480831607,0.1,210.48,210.47,20.0]
[1756480832212,0.1,210.48,210.44,20.0]
[1756480832504,0.1,210.48,210.47,36.62740477]
[1756480832711,0.1,210.48,210.47,77.06740477]
[1756480832923,0.1,210.48,210.47,77.77740477]
[1756480834010,1e-08,210.51,210.5,50.75059382]
[1756480834324,16.62740477,210.64,210.63,20.0]
[1756480834527,17.30740477,210.64,210.63,20.0]
[1756480834839,16.62740477,210.66,210.63,20.0]
[1756480835040,16.62740477,210.64,210.61,20.0]
[1756480835210,16.62740477,210.62,210.57,20.0]
[1756480835411,0.82216157,210.61,210.55,20.0]
[1756480835738,16.62740477,210.64,210.6,20.0]
[1756480835915,16.60983904,210.72,210.6,20.0]
[1756480836116,0.68,210.67,210.64,20.0]
[1756480836314,57.04740477,210.75,210.62,20.0]
[1756480836315,16.62740477,210.65,210.62,20.0]
[1756480836512,16.62740477,210.63,210.62,20.0]
[1756480836712,16.62740477,210.64,210.62,20.0]
[1756480836928,17.30740477,210.63,210.6,20.0]
[1756480837146,16.61050877,210.71,210.6,20.0]
[1756480837147,0.68,210.66,210.6,20.0]
[1756480837340,0.68,210.66,210.64,20.0]
[1756480837341,17.30740477,210.66,210.64,20.0]
[1756480838011,17.30740477,210.66,210.6,57.04740477]
[1756480838012,16.62740477,210.65,210.62,20.0]
[1756480838336,16.62740477,210.63,210.59,20.0]
[1756480838538,16.62740477,210.61,210.59,20.0]
[1756480838923,0.68,210.65,210.63,20.0]
[1756480839128,17.30740477,210.65,210.63,20.0]
[1756480839322,0.68,210.64,210.63,20.0]
[1756480839534,16.61129568,210.7,210.57,57.04740477]
[1756480839535,16.62740477,210.68,210.65,20.0]
[1756480840044,0.06,210.72,210.67,20.0]
[1756480840244,16.62740477,210.69,210.67,20.0]
[1756480840424,0.06,210.72,210.67,20.0]
[1756480840622,16.62740477,210.68,210.67,20.0]
[1756480840848,16.62740477,210.7,210.67,20.0]
[1756480841048,0.06,210.72,210.68,0.71]
[1756480841227,0.06,210.72,210.71,20.0]
[1756480841733,0.06,210.72,210.71,20.71]
[1756480842047,0.06,210.72,210.71,25.45585923]
[1756480842428,0.06,210.72,210.71,24.74585923]
[1756480842633,0.06,210.72,210.71,42.083264]
[1756480843531,0.06,210.72,210.71,20.0]
[1756480843730,16.68740477,210.72,210.71,20.0]
[1756480844342,22.11303878,210.72,210.69,20.0]
[1756480844545,16.62740477,210.7,210.69,20.0]
[1756480844848,4.80563401,210.72,210.69,20.0]
[1756480844849,0.06,210.72,210.69,20.0]
[1756480845033,16.62740477,210.7,210.69,20.0]
[1756480845435,17.30740477,210.7,210.67,20.0]
[1756480845748,0.06,210.72,210.71,20.0]
[1756480846047,0.06,210.72,210.71,20.71]
[1756480846247,0.06,210.72,210.71,25.45585923]
[1756480846550,0.06,210.72,210.71,42.083264]
[1756480847239,0.06,210.72,210.71,82.463264]
[1756480848142,0.06,210.72,210.71,65.83585923]
[1756480848338,0.06,210.72,210.71,82.463264]
[1756480849334,0.06,210.72,210.71,91.83585923]
[1756480849678,0.06,210.72,210.71,108.463264]
[1756480850324,0.06,210.72,210.71,107.753264]
[1756480850640,0.06,210.72,210.71,108.463264]
[1756480851750,0.06,210.72,210.71,91.83585923]
[1756480851949,0.06,210.72,210.71,96.05885801]
[1756480852153,0.06,210.75,210.74,76.22299878]
[1756480852339,0.06,210.75,210.74,121.32818241]
[1756480852538,0.06,210.75,210.74,122.03818241]
[1756480853655,0.06,210.75,210.74,46.71]
[1756480853835,0.06,210.75,210.74,103.69740477]
[1756480854152,0.06,210.75,210.74,122.03818241]
[1756480854652,0.06,210.75,210.74,108.4425884]
[1756480854832,0.06,210.75,210.74,102.98740477]
[1756480855246,0.06,210.75,210.74,122.03818241]
[1756480855449,16.62740477,210.86,210.84,20.0]
[1756480855652,16.62740477,210.87,210.84,20.0]
[1756480855852,0.14216157,210.84,210.8,20.0]
[1756480856057,0.14216157,210.84,210.63,100.48]
[1756480856058,0.14216157,210.8,210.73,20.0]
[1756480856249,16.62740477,210.74,210.7,20.0]
[1756480856454,16.62740477,210.73,210.7,20.0]
[1756480856649,16.62740477,210.75,210.71,20.0]
[1756480856851,40.48216157,210.8,210.72,16.62740477]
[1756480857171,16.62740477,210.77,210.74,20.0]
[1756480857361,16.62740477,210.78,210.76,20.0]
[1756480857656,0.38,210.8,210.76,20.0]
[1756480857839,0.38,210.79,210.76,20.0]
[1756480858241,0.38,210.78,210.74,20.0]
[1756480858446,16.76956634,210.79,210.6,40.36856936]
[1756480858447,16.62740477,210.76,210.7,36.62740477]
[1756480858649,0.38,210.77,210.7,20.0]
[1756480858650,17.00740477,210.75,210.7,20.0]
[1756480858851,0.38,210.74,210.7,36.62740477]
[1756480859242,0.38,210.78,210.74,20.0]
[1756480859462,0.38,210.78,210.7,4.74599289]
[1756480859463,0.38,210.85,210.79,20.0]
[1756480859635,17.00740477,210.88,210.79,20.0]
[1756480859836,17.00740477,210.88,210.82,16.62740477]
[1756480860163,16.62740477,210.86,210.83,20.0]
[1756480860335,0.38,210.85,210.79,20.0]
[1756480860536,0.38,210.85,210.8,20.0]
[1756480860858,0.38,210.85,210.78,20.0]
[1756480860859,16.62740477,210.81,210.78,20.0]
[1756480861070,16.62740477,210.8,210.78,20.0]
[1756480861267,0.38,210.84,210.78,20.0]
[1756480861564,16.62740477,210.92,210.88,20.0]
[1756480861955,16.62740477,210.91,210.88,20.0]
[1756480862269,16.62740477,210.94,210.9,20.0]
[1756480862460,16.62740477,210.93,210.9,24.74157638]
[1756480862664,16.62740477,210.93,210.9,20.0]
[1756480862851,4.74002543,210.97,210.9,20.0]
[1756480863167,16.62740477,210.96,210.9,41.36894551]
[1756480863363,0.02307071,210.98,210.94,20.0]
[1756480863569,16.65047548,210.98,210.94,20.0]
[1756480863768,16.62740477,210.96,210.94,20.0]
[1756480863957,16.62740477,210.95,210.94,20.0]
[1756480864274,0.40307071,210.98,210.94,20.0]
[1756480864470,16.62740477,210.95,210.94,24.74068455]
[1756480864775,17.00740477,210.95,210.89,24.74175796]
[1756480864946,4.76300162,210.98,210.89,24.741735]
[1756480864947,0.54523228,210.98,210.89,24.741735]
[1756480865152,16.62740477,210.9,210.89,24.741735]
[1756480865360,16.62740477,210.9,210.89,20.0]
[1756480866253,16.62740477,210.9,210.87,20.0]
[1756480866559,16.62740477,210.88,210.87,20.0]
[1756480866756,16.62740477,210.88,210.86,20.0]
[1756480867068,0.38,210.93,210.87,20.0]
[1756480867291,13.59559401,210.88,210.78,20.0]
[1756480867572,16.73298446,210.96,210.69,20.0]
[1756480867573,0.14216157,210.8,210.69,20.0]
[1756480867772,0.14216157,210.77,210.68,34.26025]
[1756480867946,0.38,210.76,210.67,20.0]
[1756480868151,25.73304213,210.68,210.65,20.0]
[1756480868352,0.38,210.75,210.68,20.0]
[1756480868548,25.73304213,210.71,210.7,20.0]
[1756480868780,0.14216157,210.76,210.7,20.0]
[1756480868966,0.14216157,210.76,210.61,66.4]
[1756480868967,0.14216157,210.76,210.72,20.0]
[1756480869562,26.0,210.78,210.72,20.0]
[1756480869872,0.14216157,210.77,210.72,20.0]
[1756480870075,25.73304213,210.73,210.72,20.0]
[1756480870453,0.14216157,210.82,210.72,25.42562414]
[1756480870660,4.88554455,210.82,210.75,20.0]
[1756480870867,25.73304213,210.77,210.75,20.0]
[1756480871069,25.73304213,210.76,210.75,20.0]
[1756480871574,25.73304213,210.76,210.73,20.0]
[1756480871777,12.23615928,210.87,210.75,20.0]
[1756480872072,12.23615928,210.87,210.72,4.74562439]
[1756480872073,25.73304213,210.82,210.8,20.0]
[1756480872284,25.73304213,210.81,210.8,20.0]
[1756480872772,40.38,210.87,210.8,20.68]
[1756480872983,25.73304213,210.81,210.8,20.68]
[1756480873280,25.73304213,210.81,210.8,20.0]
[1756480873464,25.73304213,210.81,210.77,20.0]
[1756480873664,25.73304213,210.78,210.77,20.0]
[1756480874256,0.14216157,210.82,210.77,20.0]
[1756480874555,0.14216157,210.83,210.77,20.0]
[1756480874760,0.14216157,210.85,210.79,20.0]
[1756480874988,4.74135887,210.91,210.83,20.0]
[1756480875153,25.73304213,210.84,210.83,20.0]
[1756480875354,25.73304213,210.84,210.83,20.68]
[1756480875580,25.73304213,210.85,210.83,20.68]
[1756480875761,25.73304213,210.85,210.84,0.68]
[1756480876570,25.73304213,210.85,210.83,20.0]
[1756480876883,25.73304213,210.85,210.84,0.68]
[1756480877081,25.73304213,210.86,210.84,0.68]
[1756480877400,25.73304213,210.86,210.85,20.0]
[1756480877771,25.73304213,210.86,210.85,20.68]
[1756480878122,25.73304213,210.86,210.83,20.0]
[1756480878272,25.73304213,210.84,210.83,20.0]
[1756480878471,4.74207982,210.88,210.83,20.0]
[1756480878775,25.73304213,210.84,210.83,20.68]
[1756480879182,25.73304213,210.84,210.83,20.0]
[1756480879699,25.73304213,210.84,210.81,20.0]
[1756480879999,25.73304213,210.84,210.76,4.74469864]
[1756480880000,25.73304213,210.82,210.76,100.6]
[1756480880198,40.72,210.83,210.75,0.03]
[1756480880399,25.73304213,210.76,210.75,0.03]
[1756480880568,30.61993704,210.76,210.75,0.03]
[1756480880985,25.73304213,210.76,210.75,0.03]
[1756480881386,25.8752037,210.76,210.75,0.03]
[1756480881604,39.85079771,210.76,210.75,0.03]
[1756480881900,25.73304213,210.7,210.65,20.68]
[1756480882075,25.73304213,210.66,210.65,20.0]
[1756480882275,25.73304213,210.66,210.62,20.0]
[1756480882468,25.73304213,210.63,210.62,20.0]
[1756480882884,30.480705,210.63,210.59,20.0]
[1756480883104,25.73304213,210.6,210.59,20.0]
[1756480883273,25.73304213,210.6,210.55,20.68]
[1756480883484,25.73304213,210.56,210.55,20.0]
[1756480883791,25.73304213,210.56,210.52,0.68]
[1756480883972,25.73304213,210.53,210.51,20.03]
[1756480884168,0.14216157,210.62,210.51,20.03]
[1756480884169,25.73304213,210.52,210.51,20.03]
[1756480884372,25.73304213,210.59,210.57,20.0]
[1756480884607,25.73304213,210.65,210.64,20.0]
[1756480885094,25.73304213,210.65,210.64,20.68]
[1756480885300,25.73304213,210.65,210.64,20.0]
[1756480885674,25.73304213,210.65,210.62,20.0]
[1756480885877,4.74586184,210.71,210.64,20.0]
[1756480886087,4.74586184,210.71,210.59,26.0]
[1756480886088,4.74586184,210.71,210.65,20.0]
[1756480886275,4.74586184,210.71,210.53,52.25426079]
[1756480886276,13.59559401,210.7,210.63,20.0]
[1756480886609,26.38,210.73,210.63,20.0]
[1756480886780,0.14216157,210.71,210.63,20.0]
[1756480887106,40.5,210.7,210.65,20.0]
[1756480887407,40.5,210.7,210.65,20.68]
[1756480887603,25.73304213,210.66,210.65,20.0]
[1756480887776,25.73304213,210.66,210.62,20.0]
[1756480887976,0.14216157,210.7,210.62,20.0]
[1756480888274,4.74544464,210.73,210.65,20.0]
[1756480888478,25.73304213,210.66,210.65,20.68]
[1756480890210,51.83736951,210.77,210.65,20.68]
[1756480890211,5.32514638,210.87,210.67,20.0]
[1756480890376,5.12225826,210.87,210.72,20.0]
[1756480890580,16.97790391,210.87,210.77,20.0]
[1756480890803,26.0,210.84,210.77,20.0]
[1756480891016,66.58,210.84,210.75,20.0]
[1756480891216,26.0,210.84,210.77,20.0]
[1756480891584,40.56,210.85,210.77,20.0]
[1756480891814,25.73304213,210.81,210.77,20.0]
[1756480892087,25.73304213,210.81,210.78,0.67]
[1756480892290,25.73304213,210.81,210.79,0.67]
[1756480892502,25.73304213,210.81,210.8,20.67]
[1756480892706,45.28248155,210.87,210.8,20.67]
[1756480892905,25.73304213,210.84,210.82,20.0]
[1756480893110,0.38,210.83,210.75,20.0]
[1756480893432,16.5981272,210.87,210.73,20.0]
[1756480893433,25.73304213,210.76,210.73,20.0]
[1756480893587,25.73304213,210.76,210.7,0.67]
[1756480893588,25.73304213,210.74,210.7,0.67]
[1756480893791,25.73304213,210.71,210.69,20.0]
[1756480894010,25.73304213,210.7,210.67,20.0]
[1756480894208,25.73304213,210.68,210.67,20.0]
[1756480894593,25.73304213,210.68,210.58,13.59559401]
[1756480894594,25.73304213,210.68,210.64,20.0]
[1756480894793,4.74637364,210.69,210.65,0.67]
[1756480894999,4.74637364,210.69,210.67,20.0]
[1756480895297,26.0,210.74,210.68,0.67]
[1756480895494,0.14216157,210.75,210.7,20.0]
[1756480895691,4.74473334,210.76,210.7,20.0]
[1756480895998,25.73304213,210.71,210.7,20.0]
[1756480896700,30.47890136,210.71,210.68,20.0]
[1756480896906,25.73304213,210.69,210.68,20.0]
[1756480897216,25.73304213,210.69,210.65,20.0]
[1756480897532,4.74450823,210.77,210.67,20.0]
[1756480897691,25.73304213,210.69,210.68,0.67]
[1756480898795,25.73304213,210.69,210.67,20.0]
[1756480899108,4.74590569,210.71,210.67,20.67]
[1756480899318,4.74590569,210.71,210.69,20.0]
[1756480899627,4.74518363,210.74,210.69,20.0]
[1756480900001,0.14216157,210.7,210.65,20.0]
[1756480900309,0.14216157,210.68,210.6,20.0]
[1756480900530,26.0,210.71,210.63,20.0]
[1756480900692,25.73304213,210.66,210.64,0.67]
[1756480900894,25.73304213,210.66,210.65,0.67]
[1756480901123,25.73304213,210.66,210.63,20.0]
[1756480901332,25.73304213,210.65,210.64,0.67]
[1756480902020,25.73304213,210.65,210.63,20.0]
[1756480902193,25.73304213,210.65,210.63,20.67]
[1756480902399,25.73304213,210.64,210.63,20.67]
[1756480902595,45.20585923,210.71,210.63,20.0]
[1756480902596,25.73304213,210.65,210.63,20.0]
[1756480902796,25.73304213,210.66,210.65,20.0]
[1756480903101,25.73304213,210.66,210.65,20.67]
[1756480904604,23.71737637,210.82,210.69,20.0]
[1756480904605,40.4,210.75,210.69,20.0]
[1756480904793,25.73304213,210.7,210.69,20.0]
[1756480904990,25.73304213,210.7,210.69,20.67]
[1756480905724,11.85904451,210.81,210.69,20.67]
[1756480905895,25.73304213,210.74,210.72,20.0]
[1756480906122,52.23904451,210.81,210.72,20.0]
[1756480906123,25.73304213,210.73,210.72,20.0]
[1756480907123,25.73304213,210.73,210.72,20.67]
[1756480907636,25.73304213,210.73,210.72,20.0]
[1756480908049,30.47845094,210.73,210.68,20.0]
[1756480908225,25.73304213,210.69,210.66,20.0]
[1756480908544,16.60893085,210.73,210.64,20.0]
[1756480908545,25.73304213,210.67,210.64,20.0]
[1756480908724,25.73304213,210.65,210.64,20.0]
[1756480909547,25.73304213,210.65,210.62,20.0]
[1756480909548,30.48025314,210.65,210.62,20.0]
[1756480909754,25.73304213,210.63,210.62,20.0]
[1756480910341,25.73304213,210.63,210.6,20.0]
[1756480910541,25.73304213,210.61,210.6,20.0]
[1756480911723,4.88937258,210.65,210.58,20.0]
[1756480911931,25.73304213,210.63,210.61,20.0]
[1756480912260,4.74653502,210.68,210.64,20.0]
[1756480912442,13.59559401,210.75,210.66,20.0]
[1756480912443,4.74540881,210.73,210.66,20.0]
[1756480912750,25.73304213,210.69,210.68,20.0]
[1756480912951,25.73304213,210.69,210.68,20.67]
[1756480915241,25.73304213,210.75,210.72,20.0]
[1756480915437,25.73304213,210.75,210.74,20.0]
[1756480915945,25.73304213,210.75,210.69,0.67]
[1756480915946,25.73304213,210.75,210.72,20.0]
[1756480916140,25.73304213,210.73,210.72,20.0]
[1756480917449,11.85793319,210.83,210.76,20.0]
[1756480917650,45.10338298,210.82,210.76,20.0]
[1756480917961,25.73304213,210.77,210.76,20.0]
[1756480919645,30.47755036,210.77,210.76,20.0]
[1756480919857,30.47755036,210.77,210.74,20.0]
[1756480920065,25.73304213,210.75,210.74,20.0]
[1756480920263,25.73304213,210.75,210.72,20.0]
[1756480920464,5.32514638,210.88,210.72,20.0]
[1756480920652,40.50216157,210.83,210.75,20.0]
[1756480920848,25.73304213,210.76,210.75,20.0]
[1756480921243,0.14216157,210.83,210.75,20.0]
[1756480921445,4.74323165,210.83,210.78,20.0]
[1756480921788,25.73304213,210.79,210.78,20.0]
[1756480922449,25.73304213,210.79,210.78,20.71]
[1756480923342,25.73304213,210.79,210.78,20.0]
[1756480923944,25.73304213,210.79,210.78,20.71]
[1756480924464,30.80313594,210.84,210.78,20.0]
[1756480924669,25.73304213,210.79,210.78,105.34428313]
[1756480924843,25.73304213,210.79,210.78,106.05428313]
[1756480925044,25.73304213,210.79,210.78,101.31]
[1756480925346,25.73304213,210.79,210.78,100.6]
[1756480926172,0.06,210.84,210.81,20.0]
[1756480926546,4.80298214,210.84,210.81,20.0]
[1756480926748,0.06,210.84,210.81,20.0]
[1756480926958,4.80295163,210.84,210.81,20.0]
[1756480927157,0.38,210.83,210.79,20.0]
[1756480927362,0.38,210.83,210.78,80.6]
[1756480927363,25.73304213,210.8,210.78,80.6]
[1756480927562,26.0,210.83,210.78,81.31]
[1756480927744,25.73304213,210.8,210.79,20.71]
[1756480928174,25.73304213,210.8,210.79,20.0]
[1756480928547,25.73304213,210.81,210.79,20.71]
[1756480928758,25.73304213,210.8,210.79,20.71]
[1756480928987,0.06,210.84,210.83,20.0]
[1756480928988,1e-08,210.84,210.83,20.0]